fUSD/lending_fUSD_20250517
["ID","MTS","AMOUNT","RATE_DAILY","PERIOD"]
[361364196,1747516250165,-180.0,0.0003287,9]
[361364197,1747516250175,-500.0,0.00032876,120]
[361364198,1747516250184,-500.0,0.00032876,120]
[361364199,1747516250194,-500.0,0.00032876,120]
[361364200,1747516250204,-500.0,0.00032876,120]
[361364201,1747516250213,-500.0,0.00032876,120]
[361364202,1747516250223,-500.0,0.00032876,120]
[361364203,1747516250233,-500.0,0.00032876,120]
[361364204,1747516250243,-492.10431437,0.00032876,120]
[361364205,1747516250252,-466.09374592,0.00032876,2]
[361364206,1747516250262,-533.38168142,0.00032876,2]
[361364207,1747516250272,-427.03154318,0.00032876,2]
[361364208,1747516250281,-487.29848915,0.00032876,2]
[361364209,1747516250290,-514.41691725,0.00032876,2]
[361364210,1747516250300,-348.94289105,0.00032876,2]
[361364211,1747516250311,-621.59498975,0.00032876,2]
[361364212,1747516250327,-621.59498975,0.00032876,2]
[361364213,1747516250338,-621.59498975,0.00032876,2]
[361364214,1747516250348,-621.59498975,0.00032876,2]
[361364215,1747516250358,-621.59498975,0.00032876,2]
[361364216,1747516250368,-621.59498975,0.00032876,2]
[361364217,1747516250378,-621.59498975,0.00032876,2]
[361364218,1747516250387,-621.59498975,0.00032876,2]
[361364219,1747516250397,-160.4,0.00032877,2]
[361364220,1747516250407,-500.0,0.00032877,2]
[361364221,1747516250417,-151.0,0.00032877,7]
[361364222,1747516250427,-261.851639,0.00032877,7]
[361364223,1747516250437,-500.0,0.00032898,7]
[361364224,1747516250446,-955.0,0.000329,2]
[361364225,1747516250456,-1345.53113655,0.00033,2]
[361364226,1747516250466,-150.0,0.00033,14]
[361364227,1747516250476,-700.0,0.00033,2]
[361364228,1747516250486,-216.96911098,0.000331,2]
[361364229,1747516250496,-151.0,0.000331,7]
[361364230,1747516250505,-151.0,0.000331,7]
[361364231,1747516250516,-200.0,0.00033151,2]
[361364232,1747516250526,-500.0,0.00033159,7]
[361364233,1747516250535,-269.69,0.00033165,2]
[361364234,1747516250545,-150.0,0.00033177,2]
[361364235,1747516250554,-500.0,0.00033202,7]
[361364236,1747516250563,-500.0,0.00033221,7]
[361364237,1747516250573,-500.0,0.00033243,7]
[361364238,1747516250583,-500.0,0.00033342,7]
[361364239,1747516250592,-500.0,0.00033355,7]
[361364240,1747516250731,-202.0,0.00033356,27]
[361364241,1747516250740,-899.36563778,0.00033359,2]
[361364242,1747516250751,-521.89545549,0.00033359,15]
[361364243,1747516250760,-923.31,0.00033397,2]
[361364244,1747516250769,-500.0,0.00033403,7]
[361364245,1747516250779,-500.0,0.00033481,7]
[361364246,1747516250788,-158.02,0.000335,31]
[361364247,1747516250798,-158.02,0.000335,31]
[361364248,1747516250807,-158.02,0.000335,31]
[361364249,1747516250816,-158.02,0.000335,31]
[361364250,1747516250825,-158.02,0.000335,31]
[361364251,1747516250834,-158.02,0.000335,31]
[361364252,1747516250844,-158.02,0.000335,31]
[361364253,1747516250853,-158.02,0.000335,31]
[361364254,1747516250862,-158.02,0.000335,31]
[361364255,1747516250872,-158.02,0.000335,31]
[361364256,1747516250881,-158.02,0.000335,31]
[361364257,1747516250891,-158.02,0.000335,31]
[361364258,1747516250902,-1690.07,0.00033531,2]
[361364259,1747516250911,-151.0,0.00033555,7]
[361364260,1747516250921,-151.0,0.00033555,7]
[361364261,1747516250930,-151.0,0.00033555,7]
[361364262,1747516250940,-151.0,0.00033555,7]
[361364263,1747516250951,-151.0,0.00033555,7]
[361364264,1747516250960,-151.0,0.00033555,7]
[361364265,1747516250970,-151.0,0.00033555,7]
[361364266,1747516250979,-320.74051982,0.00033688,2]
[361364267,1747516250988,-253.22,0.000337,2]
[361364268,1747516250998,-196.17,0.000337,2]
[361364269,1747516251008,-1135.12,0.000337,2]
[361364270,1747516251018,-1291.38,0.000337,14]
[361364271,1747516251028,-500.0,0.00033709,7]
[361364272,1747516251037,-500.0,0.00033877,7]
[361364273,1747516251047,-157.6,0.000339,11]
[361364274,1747516251056,-500.0,0.00033965,7]
[361364275,1747516251066,-800.0,0.00033972,60]
[361364276,1747516251076,-1900.0,0.00033972,60]
[361364277,1747516251085,-235.0,0.00034023,2]
[361364278,1747516251095,-500.0,0.00034169,7]
[361364279,1747516251104,-500.0,0.00034184,7]
[361364280,1747516251113,-500.0,0.00034189,7]
[361364281,1747516251123,-500.0,0.00034205,7]
[361364282,1747516251132,-7239.0,0.0003424,3]
[361364283,1747516251143,-202.0,0.00034244,28]
[361364284,1747516251152,-284.6325,0.00034246,2]
[361364285,1747516251162,-500.0,0.0003428,7]
[361364286,1747516251171,-500.0,0.00034292,7]
[361364287,1747516251180,-500.0,0.00034331,7]
[361364288,1747516251190,-500.0,0.00034343,7]
[361364289,1747516251200,-500.0,0.00034345,7]
[361364290,1747516251209,-800.0,0.0003452,60]
[361364291,1747516251218,-1900.0,0.0003452,60]
[361364292,1747516251228,-150.0,0.00034547,2]
[361364293,1747516251237,-500.0,0.00034595,7]
[361364294,1747516251246,-5005.18575387,0.00034798,2]
[361364295,1747516251255,-356.31836413,0.00034871,7]
[361364296,1747516251264,-597.0,0.00035,120]
[361364297,1747516251273,-750.0,0.00035,2]
[361364298,1747516251282,-1333.33333,0.00035,2]
[361364299,1747516251291,-888.0,0.00035,5]
[361364300,1747516251304,-200.30172381,0.00035,4]
[361364301,1747516251313,-220.0,0.00035,3]
[361364302,1747516251322,-4000.0,0.00035,4]
[361364303,1747516251331,-500.0,0.00035007,7]
[361364304,1747516251342,-332.60791905,0.00035057,2]
[361364305,1747516251351,-800.0,0.00035068,60]
[361364306,1747516251360,-1900.0,0.00035068,60]
[361364307,1747516251369,-182.11,0.00035068,2]
[361364308,1747516251378,-500.0,0.00035117,7]
[361364309,1747516251388,-202.0,0.00035132,29]
[361364310,1747516251397,-10012.61027668,0.00035363,5]
[361364311,1747516251407,-500.0,0.00035419,7]
[361364312,1747516251416,-151.0,0.00035508,7]
[361364313,1747516251425,-1900.0,0.00035616,60]
[361364314,1747516251435,-151.0,0.00035624,7]
[361364315,1747516251445,-151.0,0.000357,7]
[361364316,1747516251454,-408.076114,0.000357,7]
[361364317,1747516251463,-408.076114,0.000357,7]
[361364318,1747516251472,-158.02,0.000357,31]
[361364319,1747516251481,-158.02,0.000357,31]
[361364320,1747516251491,-158.02,0.000357,31]
[361364321,1747516251500,-158.02,0.000357,31]
[361364322,1747516251509,-158.02,0.000357,31]
[361364323,1747516251519,-158.02,0.000357,31]
[361364324,1747516251528,-158.02,0.000357,31]
[361364325,1747516251537,-158.02,0.000357,31]
[361364326,1747516251546,-158.02,0.000357,31]
[361364327,1747516251556,-158.02,0.000357,31]
[361364328,1747516251565,-158.02,0.000357,31]
[361364329,1747516251574,-158.02,0.000357,31]
[361364330,1747516251583,-158.02,0.000357,31]
[361364331,1747516251593,-158.02,0.000357,31]
[361364332,1747516251602,-158.02,0.000357,31]
[361364333,1747516251612,-158.02,0.000357,31]
[361364334,1747516251621,-158.02,0.000357,31]
[361364335,1747516251631,-158.02,0.000357,31]
[361364336,1747516251640,-158.02,0.000357,31]
[361364337,1747516251650,-158.02,0.000357,31]
[361364338,1747516251659,-158.02,0.000357,31]
[361364339,1747516251668,-158.02,0.000357,31]
[361364340,1747516251678,-158.02,0.000357,31]
[361364341,1747516251688,-158.02,0.000357,31]
[361364342,1747516251697,-1690.07,0.00035795,2]
[361364343,1747516251707,-500.0,0.00035885,7]
[361364344,1747516251716,-6748.48328707,0.000359,7]
[361364345,1747516251726,-150.0,0.00035917,2]
[361364346,1747516251735,-500.0,0.00035989,7]
[361364347,1747516251744,-202.0,0.0003602,31]
[361364348,1747516251753,-500.0,0.00036031,7]
[361364349,1747516251762,-500.0,0.00036076,7]
[361364350,1747516251771,-500.0,0.00036096,7]
[361364351,1747516251781,-500.0,0.00036145,7]
[361364352,1747516251790,-800.0,0.00036164,60]
[361364353,1747516251800,-151.854655,0.00036164,7]
[361364354,1747516251809,-500.0,0.00036251,7]
[361364355,1747516251818,-500.0,0.00036337,7]
[361364356,1747516251828,-152.0,0.00036382,3]
[361364357,1747516251837,-500.0,0.00036386,7]
[361364358,1747516251847,-253.22,0.000364,2]
[361364359,1747516251856,-196.17,0.000364,2]
[361364360,1747516251866,-1135.12,0.000364,2]
[361364361,1747516251875,-500.0,0.000364,5]
[361364362,1747516251885,-500.0,0.00036411,7]
[361364363,1747516251894,-344.91441206,0.00036426,2]
[361364364,1747516251903,-500.0,0.00036528,7]
[361364365,1747516251912,-500.0,0.00036577,7]
[361364366,1747516251921,-521.89545549,0.00036602,15]
[361364367,1747516251931,-349.64256328,0.0003661,2]
[361364368,1747516251940,-608.77614371,0.00036645,7]
[361364369,1747516251950,-563.05230357,0.00036647,7]
[361364370,1747516251959,-500.0,0.00036659,7]
[361364371,1747516251968,-1900.0,0.00036712,60]
[361364372,1747516251978,-202.0,0.00036909,32]
[361364373,1747516251987,-500.0,0.00036915,7]
[361364374,1747516251997,-171.82,0.00036986,120]
[361364375,1747516252007,-800.0,0.00037,2]
[361364376,1747516252016,-500.0,0.00037062,7]
[361364377,1747516252025,-500.0,0.00037124,7]
[361364378,1747516252035,-150.41,0.00037228,2]
[361364379,1747516252044,-800.0,0.0003726,60]
[361364380,1747516252054,-150.0,0.00037287,2]
[361364381,1747516252064,-500.0,0.00037393,7]
[361364382,1747516252073,-500.0,0.00037399,7]
[361364383,1747516252083,-500.0,0.00037409,7]
[361364384,1747516252092,-901.17183722,0.00037639,7]
[361364385,1747516252101,-500.0,0.0003767,7]
[361364386,1747516252110,-22226.0751821,0.00037732,2]
[361364387,1747516252119,-3997.4885066,0.00037732,2]
[361364388,1747516252129,-357.6762453,0.00037795,2]
[361364389,1747516252138,-202.0,0.00037797,33]
[361364390,1747516252147,-888.0,0.00037803,5]
[361364391,1747516252157,-1900.0,0.00037808,60]
[361364392,1747516252167,-158.02,0.000379,31]
[361364393,1747516252177,-158.02,0.000379,31]
[361364394,1747516252187,-158.02,0.000379,31]
[361364395,1747516252196,-158.02,0.000379,31]
[361364396,1747516252206,-158.02,0.000379,31]
[361364397,1747516252215,-158.02,0.000379,31]
[361364398,1747516252224,-158.02,0.000379,31]
[361364399,1747516252234,-158.02,0.000379,31]
[361364400,1747516252243,-158.02,0.000379,31]
[361364401,1747516252252,-158.02,0.000379,31]
[361364402,1747516252262,-158.02,0.000379,31]
[361364403,1747516252272,-158.02,0.000379,31]
[361364404,1747516252281,-158.02,0.000379,31]
[361364405,1747516252290,-158.02,0.000379,31]
[361364406,1747516252300,-158.02,0.000379,31]
[361364407,1747516252310,-158.02,0.000379,31]
[361364408,1747516252321,-158.02,0.000379,31]
[361364409,1747516252332,-158.02,0.000379,31]
[361364410,1747516252341,-158.02,0.000379,31]
[361364411,1747516252351,-158.02,0.000379,31]
[361364412,1747516252361,-158.02,0.000379,31]
[361364413,1747516252371,-158.02,0.000379,31]
[361364414,1747516252381,-158.02,0.000379,31]
[361364415,1747516252390,-158.02,0.000379,31]
[361364416,1747516252401,-500.0,0.00037957,7]
[361364417,1747516252411,-10000.0,0.00038,7]
[361364418,1747516252420,-1000.0,0.00038,30]
[361364419,1747516252429,-4000.0,0.00038,4]
[361364420,1747516252439,-1690.07,0.00038059,2]
[361364421,1747516252448,-680.42542436,0.00038164,7]
[361364422,1747516252458,-899.36563778,0.00038223,2]
[361364423,1747516252467,-150.0,0.00038331,7]
[361364424,1747516252477,-315.98534528,0.00038331,7]
[361364425,1747516252486,-247.53125523,0.00038331,7]
[361364426,1747516252496,-150.0,0.00038331,7]
[361364427,1747516252506,-150.0,0.00038331,7]
[361364428,1747516252515,-150.0,0.00038331,7]
[361364429,1747516252524,-150.0,0.00038331,7]
[361364430,1747516252534,-150.0,0.00038331,7]
[361364431,1747516252543,-150.0,0.00038331,7]
[361364432,1747516252553,-150.0,0.00038331,7]
[361364433,1747516252563,-495.09706035,0.00038356,120]
[361364434,1747516252573,-500.0,0.00038356,2]
[361364435,1747516252583,-500.0,0.00038356,2]
[361364436,1747516252593,-500.0,0.00038356,2]
[361364437,1747516252603,-500.0,0.00038356,2]
[361364438,1747516252613,-500.0,0.00038356,2]
[361364439,1747516252622,-500.0,0.00038356,2]
[361364440,1747516252632,-500.0,0.00038356,2]
[361364441,1747516252641,-500.0,0.00038356,2]
[361364442,1747516252650,-500.0,0.00038356,2]
[361364443,1747516252659,-500.0,0.00038356,2]
[361364444,1747516252668,-500.0,0.00038356,2]
[361364445,1747516252678,-500.0,0.00038356,2]
[361364446,1747516252687,-500.0,0.00038356,2]
[361364447,1747516252696,-500.0,0.00038356,2]
[361364448,1747516252706,-500.0,0.00038356,2]
[361364449,1747516252715,-518.52805425,0.00038356,2]
[361364450,1747516252724,-500.0,0.00038356,120]
[361364451,1747516252733,-500.0,0.00038356,120]
[361364452,1747516252742,-500.0,0.00038356,120]
[361364453,1747516252751,-489.57124186,0.00038356,120]
[361364454,1747516252760,-536.0694934,0.00038356,2]
[361364455,1747516252769,-400.0,0.00038356,2]
[361364456,1747516252779,-500.0,0.00038356,120]
[361364457,1747516252788,-500.0,0.00038356,120]
[361364458,1747516252797,-639.86,0.00038356,120]
[361364459,1747516252806,-400.0,0.00038356,2]
[361364460,1747516252816,-400.0,0.00038356,2]
[361364461,1747516252825,-400.0,0.00038356,120]
[361364462,1747516252835,-500.0,0.00038356,120]
[361364463,1747516252845,-319.93,0.00038356,120]
[361364464,1747516252855,-500.0,0.00038356,120]
[361364465,1747516252866,-500.0,0.00038356,120]
[361364466,1747516252876,-500.0,0.00038356,120]
[361364467,1747516252886,-502.76381463,0.00038356,120]
[361364468,1747516252896,-500.0,0.00038356,120]
[361364469,1747516252905,-500.0,0.00038356,120]
[361364470,1747516252915,-500.0,0.00038356,120]
[361364471,1747516252927,-500.0,0.00038356,120]
[361364472,1747516252936,-175.51,0.00038356,120]
[361364473,1747516252946,-500.0,0.00038356,120]
[361364474,1747516252956,-500.0,0.00038356,2]
[361364475,1747516252966,-500.0,0.00038356,2]
[361364476,1747516252975,-500.0,0.00038356,2]
[361364477,1747516252985,-500.0,0.00038356,120]
[361364478,1747516252995,-500.0,0.00038356,120]
[361364479,1747516253004,-500.0,0.00038356,120]
[361364480,1747516253014,-400.0,0.00038356,2]
[361364481,1747516253023,-400.0,0.00038356,120]
[361364482,1747516253033,-500.0,0.00038356,120]
[361364483,1747516253043,-319.93,0.00038356,120]
[361364484,1747516253052,-500.0,0.00038356,120]
[361364485,1747516253061,-400.0,0.00038356,2]
[361364486,1747516253071,-500.0,0.00038356,120]
[361364487,1747516253080,-300.0,0.00038356,120]
[361364488,1747516253090,-500.0,0.00038356,120]
[361364489,1747516253099,-319.93,0.00038356,120]
[361364490,1747516253109,-500.0,0.00038356,120]
[361364491,1747516253118,-500.0,0.00038356,120]
[361364492,1747516253127,-319.93,0.00038356,120]
[361364493,1747516253136,-500.0,0.00038356,120]
[361364494,1747516253146,-300.0,0.00038356,120]
[361364495,1747516253155,-500.0,0.00038356,120]
[361364496,1747516253165,-400.0,0.00038356,120]
[361364497,1747516253174,-500.0,0.00038356,120]
[361364498,1747516253183,-500.0,0.00038356,120]
[361364499,1747516253193,-500.0,0.00038356,120]
[361364500,1747516253202,-500.0,0.00038356,120]
[361364501,1747516253212,-500.0,0.00038356,120]
[361364502,1747516253221,-500.0,0.00038356,120]
[361364503,1747516253230,-500.0,0.00038356,120]
[361364504,1747516253240,-500.0,0.00038356,120]
[361364505,1747516253249,-500.0,0.00038356,120]
[361364506,1747516253258,-500.0,0.00038356,120]
[361364507,1747516253267,-500.0,0.00038356,120]
[361364508,1747516253276,-239.51,0.00038356,120]
[361364509,1747516253286,-500.0,0.00038356,120]
[361364510,1747516253295,-500.0,0.00038356,120]
[361364511,1747516253304,-500.0,0.00038356,120]
[361364512,1747516253314,-500.0,0.00038356,120]
[361364513,1747516253328,-500.0,0.00038356,120]
[361364514,1747516253337,-500.0,0.00038356,120]
[361364515,1747516253346,-500.0,0.00038356,120]
[361364516,1747516253356,-500.0,0.00038356,120]
[361364517,1747516253365,-500.0,0.00038356,120]
[361364518,1747516253375,-500.0,0.00038356,120]
[361364519,1747516253384,-500.0,0.00038356,120]
[361364520,1747516253394,-500.0,0.00038356,120]
[361364521,1747516253403,-639.86,0.00038356,120]
[361364522,1747516253413,-500.0,0.00038356,120]
[361364523,1747516253422,-500.0,0.00038356,120]
[361364524,1747516253431,-500.0,0.00038356,120]
[361364525,1747516253441,-500.0,0.00038356,120]
[361364526,1747516253450,-500.0,0.00038356,120]
[361364527,1747516253459,-188.16,0.00038356,120]
[361364528,1747516253470,-478.67,0.00038356,2]
[361364529,1747516253479,-800.0,0.00038356,60]
[361364530,1747516253488,-500.0,0.00038356,120]
[361364531,1747516253497,-500.0,0.00038356,120]
[361364532,1747516253507,-500.0,0.00038356,120]
[361364533,1747516253516,-500.0,0.00038356,120]
[361364534,1747516253526,-500.0,0.00038356,120]
[361364535,1747516253535,-500.0,0.00038356,120]
[361364536,1747516253544,-500.0,0.00038356,120]
[361364537,1747516253552,-500.0,0.00038356,120]
[361364538,1747516253562,-500.0,0.00038356,120]
[361364539,1747516253571,-500.0,0.00038356,120]
[361364540,1747516253581,-500.0,0.00038356,120]
[361364541,1747516253591,-239.67155209,0.00038356,120]
[361364542,1747516253601,-500.0,0.00038356,120]
[361364543,1747516253610,-500.0,0.00038356,2]
[361364544,1747516253621,-500.0,0.00038356,2]
[361364545,1747516253631,-500.0,0.00038356,2]
[361364546,1747516253640,-500.0,0.00038356,2]
[361364547,1747516253649,-500.0,0.00038356,2]
[361364548,1747516253658,-500.0,0.00038356,2]
[361364549,1747516253668,-281.31,0.00038356,2]
[361364550,1747516253677,-400.0,0.00038356,120]
[361364551,1747516253686,-500.0,0.00038356,120]
[361364552,1747516253697,-500.0,0.00038356,120]
[361364553,1747516253707,-336.78193485,0.00038356,120]
[361364554,1747516253716,-500.0,0.00038356,120]
[361364555,1747516253726,-500.0,0.00038356,120]
[361364556,1747516253735,-300.0,0.00038356,120]
[361364557,1747516253745,-253.63534614,0.00038356,120]
[361364558,1747516253755,-501.6916105,0.00038356,120]
[361364559,1747516253765,-500.0,0.00038356,120]
[361364560,1747516253774,-400.0,0.00038356,2]
[361364561,1747516253784,-186.81470976,0.00038356,2]
[361364562,1747516253794,-500.0,0.00038356,120]
[361364563,1747516253803,-295.62,0.00038356,120]
[361364564,1747516253813,-500.0,0.00038356,120]
[361364565,1747516253823,-500.0,0.00038356,120]
[361364566,1747516253832,-200.0,0.00038356,120]
[361364567,1747516253841,-400.0,0.00038356,120]
[361364568,1747516253851,-1000.0,0.00038356,2]
[361364569,1747516253860,-569.265,0.00038356,7]
[361364570,1747516253869,-315.98534528,0.00038374,7]
[361364571,1747516253878,-247.53125523,0.00038374,7]
[361364572,1747516253889,-150.0,0.00038379,7]
[361364573,1747516253899,-500.0,0.00038402,7]
[361364574,1747516253907,-150.0,0.00038407,7]
[361364575,1747516253917,-315.98534528,0.00038417,7]
[361364576,1747516253926,-247.53125523,0.00038417,7]
[361364577,1747516253935,-150.0,0.00038424,7]
[361364578,1747516253945,-150.0,0.00038428,7]
[361364579,1747516253954,-315.98534528,0.0003846,7]
[361364580,1747516253963,-247.53125523,0.0003846,7]
[361364581,1747516253972,-150.0,0.00038473,7]
[361364582,1747516253981,-150.0,0.00038476,7]
[361364583,1747516253991,-150.0,0.00038483,7]
[361364584,1747516254000,-315.98534528,0.00038503,7]
[361364585,1747516254009,-247.53125523,0.00038503,7]
[361364586,1747516254018,-150.0,0.00038516,7]
[361364587,1747516254027,-150.0,0.00038525,7]
[361364588,1747516254036,-150.0,0.00038544,7]
[361364589,1747516254046,-315.98534528,0.00038546,7]
[361364590,1747516254055,-247.53125523,0.00038546,7]
[361364591,1747516254066,-150.0,0.00038559,7]
[361364592,1747516254076,-150.0,0.00038573,7]
[361364593,1747516254086,-315.98534528,0.00038589,7]
[361364594,1747516254095,-247.53125523,0.00038589,7]
[361364595,1747516254104,-150.0,0.00038609,7]
[361364596,1747516254112,-150.0,0.00038615,7]
[361364597,1747516254122,-150.0,0.00038621,7]
[361364598,1747516254131,-294.92,0.0003863,2]
[361364599,1747516254139,-400.0,0.0003863,2]
[361364600,1747516254149,-459.3,0.0003863,2]
[361364601,1747516254158,-400.0,0.0003863,2]
[361364602,1747516254167,-400.0,0.0003863,2]
[361364603,1747516254176,-478.67,0.0003863,2]
[361364604,1747516254186,-1000.0,0.0003863,2]
[361364605,1747516254195,-500.0,0.00038631,7]
[361364606,1747516254204,-315.98534528,0.00038632,7]
[361364607,1747516254213,-247.53125523,0.00038632,7]
[361364608,1747516254222,-150.0,0.00038635,7]
[361364609,1747516254231,-150.0,0.00038656,2]
[361364610,1747516254240,-500.0,0.00038666,7]
[361364611,1747516254250,-150.0,0.0003867,7]
[361364612,1747516254259,-315.98534528,0.00038675,7]
[361364613,1747516254268,-247.53125523,0.00038675,7]
[361364614,1747516254277,-202.0,0.00038685,34]
[361364615,1747516254287,-150.0,0.00038701,7]
[361364616,1747516254296,-150.0,0.00038711,7]
[361364617,1747516254305,-150.0,0.00038718,7]
[361364618,1747516254315,-315.98534528,0.00038718,7]
[361364619,1747516254329,-247.53125523,0.00038718,7]
[361364620,1747516254338,-150.0,0.00038718,7]
[361364621,1747516254347,-150.0,0.00038718,7]
[361364622,1747516254356,-150.0,0.00038757,7]
[361364623,1747516254368,-150.0,0.00038757,7]
[361364624,1747516254377,-315.98534528,0.00038761,7]
[361364625,1747516254386,-247.53125523,0.00038761,7]
[361364626,1747516254398,-150.0,0.00038767,7]
[361364627,1747516254407,-150.0,0.00038787,7]
[361364628,1747516254416,-150.0,0.00038794,7]
[361364629,1747516254425,-315.98534528,0.00038804,7]
[361364630,1747516254435,-247.53125523,0.00038804,7]
[361364631,1747516254445,-150.0,0.00038815,7]
[361364632,1747516254455,-315.98534528,0.00038847,7]
[361364633,1747516254464,-247.53125523,0.00038847,7]
[361364634,1747516254474,-150.0,0.00038863,7]
[361364635,1747516254483,-150.0,0.00038863,7]
[361364636,1747516254493,-350.0,0.00038865,30]
[361364637,1747516254502,-150.0,0.00038887,7]
[361364638,1747516254511,-315.98534528,0.0003889,7]
[361364639,1747516254521,-247.53125523,0.0003889,7]
[361364640,1747516254530,-150.0,0.00038899,7]
[361364641,1747516254540,-275.77,0.00038904,2]
[361364642,1747516254549,-400.0,0.00038904,2]
[361364643,1747516254559,-400.0,0.00038904,2]
[361364644,1747516254569,-478.67,0.00038904,2]
[361364645,1747516254579,-1900.0,0.00038904,60]
[361364646,1747516254588,-1000.0,0.00038904,2]
[361364647,1747516254598,-500.0,0.00038904,30]
[361364648,1747516254607,-150.0,0.00038912,7]
[361364649,1747516254616,-315.98534528,0.00038933,7]
[361364650,1747516254625,-247.53125523,0.00038933,7]
[361364651,1747516254634,-150.0,0.00038939,7]
[361364652,1747516254643,-150.0,0.0003896,7]
[361364653,1747516254652,-150.0,0.0003897,7]
[361364654,1747516254661,-315.98534528,0.00038976,7]
[361364655,1747516254670,-247.53125523,0.00038976,7]
[361364656,1747516254679,-150.0,0.00038979,7]
[361364657,1747516254688,-2110.0,0.00039,2]
[361364658,1747516254698,-850.0,0.00039,2]
[361364659,1747516254709,-150.0,0.00039009,7]
[361364660,1747516254719,-500.0,0.00039009,7]
[361364661,1747516254730,-150.0,0.00039015,7]
[361364662,1747516254740,-300.0,0.00039016,2]
[361364663,1747516254751,-315.98534528,0.00039019,7]
[361364664,1747516254888,-247.53125523,0.00039019,7]
[361364665,1747516254898,-150.0,0.00039041,7]
[361364666,1747516254907,-150.0,0.00039057,7]
[361364667,1747516254917,-315.98534528,0.00039062,7]
[361364668,1747516254926,-247.53125523,0.00039062,7]
[361364669,1747516254935,-150.0,0.00039072,7]
[361364670,1747516254945,-500.0,0.0003909,7]
[361364671,1747516254954,-150.0,0.00039092,7]
[361364672,1747516254963,-500.0,0.00039092,7]
[361364673,1747516254972,-150.0,0.00039105,7]
[361364674,1747516254981,-315.98534528,0.00039105,7]
[361364675,1747516254990,-247.53125523,0.00039105,7]
[361364676,1747516254999,-150.0,0.00039105,7]
[361364677,1747516255008,-150.0,0.00039105,7]
[361364678,1747516255018,-500.0,0.00039138,7]
[361364679,1747516255027,-1000.0,0.0003914,5]
[361364680,1747516255038,-500.0,0.00039146,7]
[361364681,1747516255047,-315.98534528,0.00039148,7]
[361364682,1747516255056,-247.53125523,0.00039148,7]
[361364683,1747516255067,-150.0,0.00039154,7]
[361364684,1747516255077,-370.91026638,0.00039164,2]
[361364685,1747516255086,-150.0,0.00039164,7]
[361364686,1747516255096,-150.0,0.00039168,7]
[361364687,1747516255105,-457.84,0.0003917,2]
[361364688,1747516255115,-457.84,0.0003917,2]
[361364689,1747516255125,-804.72,0.0003917,2]
[361364690,1747516255134,-456.95,0.0003917,2]
[361364691,1747516255143,-804.72,0.0003917,2]
[361364692,1747516255152,-481.73,0.0003917,2]
[361364693,1747516255162,-914.92,0.0003917,2]
[361364694,1747516255171,-151.54,0.00039178,2]
[361364695,1747516255180,-151.54,0.00039178,2]